[Event "GER-chW Blitz 2019"]
[Site "Magdeburg"]
[Date "2019.05.25"]
[Round "9.12"]
[White "Zimmer, Elke"]
[Black "Kopylov, Luba"]
[Result "0-1"]
[ECO "B23"]
[WhiteElo "1926"]
[BlackElo "2078"]
[Annotator "NA"]
[PlyCount "52"]
[EventDate "2019.05.25"]
[EventType "tourn"]
[EventCountry "GER"]
[SourceTitle "playchess.com"]
[Source "ChessBase"]
[SourceQuality "1"]
[TimeControl "180+2"]

1. e4 {[%emt 0:00:00]} c5 {[%emt 0:00:00]} 2. Nc3 {[%emt 0:00:00]} d6 {[%emt 0:00:01]} 3. g3 {[%emt 0:00:00]} g6 {[%emt 0:00:03]} 4. Bg2 {[%emt 0:00:01]} Bg7 5. d3 e6 {[%emt 0:00:03]} 6. Be3 {[%emt 0:00:02]} Ne7 {[%emt 0:00:01]} 7. Qd2 {[%emt 0:00:01]} Nbc6 {[%emt 0:00:02]} 8. Bh6 {[%emt 0:00:04]} O-O {[%emt 0:00:06]} 9. Bxg7 {[%emt 0:00:01]} Kxg7 {[%emt 0:00:02]} 10. Nge2 {[%emt 0:00:06]} Rb8 {[%emt 0:00:08]} 11. O-O {[%emt 0:00:02]} b5 {[%emt 0:00:01]} 12. f4 {[%emt 0:00:18]} b4 {[%emt 0:00:08]} 13. Nd1 {[%emt 0:00:00]} Qb6 {[%emt 0:00:08]} 14. Qe3 {[%emt 0:00:02]} f5 {[%emt 0:00:12]} 15. Nf2 {[%emt 0:00:16]} d5 {[%emt 0:00:35]} 16. e5 {[%emt 0:00:24]} d4 {[%emt 0:00:08]} 17. Qd2 {[%emt 0:00:00]} Na5 {[%emt 0:00:08]} 18. h3 {[%emt 0:00:11]} c4 {[%emt 0:00:02]} 19. Rfe1 {[%emt 0:00:46]} c3 {[%emt 0:00:04]} 20. bxc3 {[%emt 0:00:02]} dxc3 {[%emt 0:00:02]} 21. Qc1 {[%emt 0:00:04]} Bb7 {[%emt 0:00:01]} 22. d4 {[%emt 0:00:09]} Bxg2 23. Kxg2 {[%emt 0:00:01]} Qc6+ {[%emt 0:00:13]} 24. Kg1 {[%emt 0:00:02]} Qf3 {[%emt 0:00:03]} 25. Qd1 {[%emt 0:00:09]} Nd5 {[%emt 0:00:01]} 26. Qd3 {[%emt 0:00:00]} Ne3 {[%emt 0:00:04]} 0-1

[Event "GER-chW Blitz 2019"]
[Site "Magdeburg"]
[Date "2019.05.25"]
[Round "10.1"]
[White "Roesler, Hannah Clara Hed"]
[Black "Kopylov, Luba"]
[Result "1-0"]
[ECO "B22"]
[WhiteElo "1619"]
[BlackElo "2078"]
[Annotator "NA"]
[PlyCount "67"]
[EventDate "2019.05.25"]
[EventType "tourn"]
[EventCountry "GER"]
[SourceTitle "playchess.com"]
[Source "ChessBase"]
[SourceQuality "1"]
[TimeControl "180+2"]

1. e4 {[%emt 0:00:00]} c5 {[%emt 0:00:00]} 2. c3 {[%emt 0:00:00]} d5 {[%emt 0:00:01]} 3. exd5 {[%emt 0:00:01]} Qxd5 {[%emt 0:00:02]} 4. d4 {[%emt 0:00:02]} e6 {[%emt 0:00:05]} 5. Nf3 {[%emt 0:00:07]} Nf6 {[%emt 0:00:02]} 6. Na3 {[%emt 0:00:08]} a6 {[%emt 0:00:04]} 7. Nc4 {[%emt 0:00:11]} Nbd7 {[%emt 0:00:11]} 8. Bd3 {[%emt 0:00:26]} cxd4 {[%emt 0:00:13]} 9. cxd4 {[%emt 0:00:26]} Bb4+ {[%emt 0:00:02]} 10. Bd2 {[%emt 0:00:08]} Bxd2+ {[%emt 0:00:02]} 11. Qxd2 {[%emt 0:00:07]} O-O {[%emt 0:00:03]} 12. O-O {[%emt 0:00:12]} b5 {[%emt 0:00:02]} 13. Ne3 {[%emt 0:00:08]} Qh5 {[%emt 0:00:02]} 14. Bc2 {[%emt 0:00:13]} Bb7 {[%emt 0:00:03]} 15. Bd1 {[%emt 0:00:13]} Ng4 {[%emt 0:00:14]} 16. h3 {[%emt 0:00:23]} Nxe3 {[%emt 0:00:07]} 17. fxe3 {[%emt 0:00:06]} Qg6 {[%emt 0:00:07]} 18. Bc2 {[%emt 0:00:07]} Qg3 {[%emt 0:00:05]} 19. Rac1 {[%emt 0:00:06]} Nf6 {[%emt 0:00:06]} 20. Ne5 {[%emt 0:00:12]} Rad8 {[%emt 0:00:31]} 21. Bd3 {[%emt 0:00:10]} Ne4 {[%emt 0:00:10]} 22. Qe1 {[%emt 0:00:08]} Nc5 {[%emt 0:00:14]} 23. Qxg3 {[%emt 0:00:02]} Nxd3 {[%emt 0:00:03]} 24. Nxd3 {[%emt 0:00:02]} Be4 {[%emt 0:00:02]} 25. Ne5 {[%emt 0:00:02]} Bg6 {[%emt 0:00:03]} 26. Nxg6 {[%emt 0:00:01]} hxg6 {[%emt 0:00:02]} 27. Rc7 {[%emt 0:00:02]} Rd5 {[%emt 0:00:05]} 28. Rfc1 {[%emt 0:00:02]} Rfd8 {[%emt 0:00:07]} 29. Rc8 {[%emt 0:00:02]} Kh7 {[%emt 0:00:09]} 30. Rxd8 {[%emt 0:00:02]} Rxd8 {[%emt 0:00:01]} 31. Qh4+ {[%emt 0:00:01]} Kg8 {[%emt 0:00:02]} 32. Qxd8+ {[%emt 0:00:02]} Kh7 {[%emt 0:00:01]} 33. Qh4+ {[%emt 0:00:01]} Kg8 {[%emt 0:00:00]} 34. Rc8# {[%emt 0:00:01]} 1-0

[Event "GER-chW Blitz 2019"]
[Site "Magdeburg"]
[Date "2019.05.25"]
[Round "10.2"]
[White "Gheng, Simona"]
[Black "Zimmer, Elke"]
[Result "1-0"]
[ECO "C65"]
[WhiteElo "1991"]
[BlackElo "1926"]
[Annotator "NA"]
[PlyCount "73"]
[EventDate "2019.05.25"]
[EventType "tourn"]
[EventCountry "GER"]
[SourceTitle "playchess.com"]
[Source "ChessBase"]
[SourceQuality "1"]
[TimeControl "180+2"]

1. e4 {[%emt 0:00:00]} e5 {[%emt 0:00:00]} 2. Nf3 {[%emt 0:00:02]} Nc6 {[%emt 0:00:00]} 3. Bb5 {[%emt 0:00:01]} Nf6 {[%emt 0:00:02]} 4. d3 {[%emt 0:00:00]} d6 {[%emt 0:00:03]} 5. c3 {[%emt 0:00:02]} Bd7 {[%emt 0:00:02]} 6. O-O {[%emt 0:00:01]} a6 {[%emt 0:00:02]} 7. Ba4 {[%emt 0:00:01]} Be7 {[%emt 0:00:09]} 8. Nbd2 {[%emt 0:00:02]} O-O {[%emt 0:00:01]} 9. Re1 {[%emt 0:00:01]} Bg4 {[%emt 0:00:17]} 10. Nf1 {[%emt 0:00:00]} b5 {[%emt 0:00:06]} 11. Bc2 {[%emt 0:00:01]} b4 {[%emt 0:00:03]} 12. Ng3 {[%emt 0:00:01]} Qd7 {[%emt 0:00:18]} 13. h3 {[%emt 0:00:02]} Be6 {[%emt 0:00:03]} 14. d4 {[%emt 0:00:08]} exd4 {[%emt 0:00:07]} 15. cxd4 {[%emt 0:00:01]} Bc4 {[%emt 0:00:11]} 16. Nf5 {[%emt 0:00:05]} Rfe8 {[%emt 0:00:06]} 17. Nxe7+ {[%emt 0:00:17]} Nxe7 {[%emt 0:00:05]} 18. b3 {[%emt 0:00:06]} Bb5 {[%emt 0:00:02]} 19. Bb2 {[%emt 0:00:03]} d5 {[%emt 0:00:05]} 20. e5 {[%emt 0:00:02]} Ne4 {[%emt 0:00:17]} 21. Bxe4 {[%emt 0:00:06]} dxe4 {[%emt 0:00:00]} 22. Rxe4 {[%emt 0:00:01]} Bc6 {[%emt 0:00:10]} 23. Re1 {[%emt 0:00:04]} Ng6 {[%emt 0:00:04]} 24. Qd3 {[%emt 0:00:17]} Bb5 {[%emt 0:00:14]} 25. Qe4 {[%emt 0:00:07]} Bc6 26. Qc2 Rac8 {[%emt 0:00:13]} 27. Rac1 {[%emt 0:00:02]} Bd5 {[%emt 0:00:07]} 28. Qc5 {[%emt 0:00:03]} Bxf3 {[%emt 0:00:08]} 29. gxf3 {[%emt 0:00:05]} Qxh3 {[%emt 0:00:01]} 30. Re4 {[%emt 0:00:48]} Nh4 {[%emt 0:00:01]} 31. Rxh4 Qxh4 32. Qxb4 {[%emt 0:00:16]} Qh3 {[%emt 0:00:09]} 33. d5 Qf5 {[%emt 0:00:17]} 34. Qe4 {[%emt 0:00:13]} Qg5+ {[%emt 0:00:04]} 35. Qg4 {[%emt 0:00:06]} Qh6 {[%emt 0:00:08]} 36. Rc6 {[%emt 0:00:06]} Rcd8 {[%emt 0:00:03]} 37. Rxh6 {[%emt 0:00:02]} 1-0

[Event "GER-chW Blitz 2019"]
[Site "Magdeburg"]
[Date "2019.05.25"]
[Round "10.3"]
[White "Kunze, Kerstin"]
[Black "Mader, Lena"]
[Result "1-0"]
[ECO "B19"]
[WhiteElo "2066"]
[BlackElo "1839"]
[Annotator "NA"]
[PlyCount "71"]
[EventDate "2019.05.25"]
[EventType "tourn"]
[EventCountry "GER"]
[SourceTitle "playchess.com"]
[Source "ChessBase"]
[SourceQuality "1"]
[TimeControl "180+2"]

1. e4 {[%emt 0:00:01]} c6 {[%emt 0:00:00]} 2. d4 {[%emt 0:00:01]} d5 {[%emt 0:00:00]} 3. Nc3 {[%emt 0:00:02]} dxe4 {[%emt 0:00:01]} 4. Nxe4 {[%emt 0:00:01]} Bf5 {[%emt 0:00:01]} 5. Ng3 {[%emt 0:00:02]} Bg6 {[%emt 0:00:00]} 6. Nf3 {[%emt 0:00:03]} Nd7 {[%emt 0:00:03]} 7. h4 {[%emt 0:00:03]} h6 {[%emt 0:00:01]} 8. h5 {[%emt 0:00:01]} Bh7 {[%emt 0:00:01]} 9. Bd3 {[%emt 0:00:02]} Bxd3 {[%emt 0:00:01]} 10. Qxd3 {[%emt 0:00:01]} Ngf6 {[%emt 0:00:04]} 11. Bd2 {[%emt 0:00:12]} e6 {[%emt 0:00:01]} 12. O-O-O {[%emt 0:00:07]} Be7 {[%emt 0:00:16]} 13. Rdg1 {[%emt 0:00:29]} c5 {[%emt 0:00:20]} 14. Ne4 {[%emt 0:00:13]} c4 {[%emt 0:00:24]} 15. Nxf6+ {[%emt 0:00:07]} Bxf6 {[%emt 0:00:09]} 16. Qxc4 {[%emt 0:00:02]} Rc8 {[%emt 0:00:02]} 17. Qd3 {[%emt 0:00:03]} Qb6 {[%emt 0:00:26]} 18. Kb1 {[%emt 0:00:16]} Nc5 {[%emt 0:00:15]} 19. Qa3 {[%emt 0:00:38]} Ne4 {[%emt 0:00:22]} 20. Be3 {[%emt 0:00:33]} Qc6 {[%emt 0:00:10]} 21. Rc1 {[%emt 0:00:03]} Be7 {[%emt 0:00:18]} 22. Qd3 {[%emt 0:00:01]} O-O {[%emt 0:00:02]} 23. Ne5 {[%emt 0:00:01]} Qd5 {[%emt 0:00:06]} 24. c4 {[%emt 0:00:01]} Nc3+ 25. Rxc3 {[%emt 0:00:07]} Qxg2 {[%emt 0:00:31]} 26. Rd1 {[%emt 0:00:05]} a6 27. Qe2 {[%emt 0:00:03]} Bf6 {[%emt 0:00:09]} 28. Qf3 {[%emt 0:00:03]} Qh2 {[%emt 0:00:03]} 29. Nd7 {[%emt 0:00:01]} Rfd8 {[%emt 0:00:02]} 30. Nxf6+ {[%emt 0:00:02]} gxf6 {[%emt 0:00:02]} 31. Qxf6 {[%emt 0:00:01]} Kh7 {[%emt 0:00:03]} 32. Bxh6 {[%emt 0:00:02]} Rg8 {[%emt 0:00:01]} 33. Bf4 {[%emt 0:00:10]} Qxh5 {[%emt 0:00:02]} 34. Rg3 {[%emt 0:00:09]} Rg6 {[%emt 0:00:05]} 35. Qxf7+ {[%emt 0:00:01]} Kh8 {[%emt 0:00:04]} 36. Qxg6 {[%emt 0:00:01]} 1-0

[Event "GER-chW Blitz 2019"]
[Site "Magdeburg"]
[Date "2019.05.25"]
[Round "10.4"]
[White "Kreismann, Franziska"]
[Black "Braje, Monika"]
[Result "0-1"]
[ECO "D08"]
[WhiteElo "1589"]
[BlackElo "1781"]
[Annotator "NA"]
[PlyCount "82"]
[EventDate "2019.05.25"]
[EventType "tourn"]
[EventCountry "GER"]
[SourceTitle "playchess.com"]
[Source "ChessBase"]
[SourceQuality "1"]
[TimeControl "180+2"]

1. d4 {[%emt 0:00:00]} d5 {[%emt 0:00:00]} 2. c4 {[%emt 0:00:00]} e5 {[%emt 0:00:05]} 3. dxe5 {[%emt 0:00:04]} d4 {[%emt 0:00:00]} 4. Nf3 {[%emt 0:00:02]} Nc6 {[%emt 0:00:01]} 5. Bf4 {[%emt 0:00:07]} Be6 {[%emt 0:00:02]} 6. b3 {[%emt 0:00:03]} Bb4+ {[%emt 0:00:03]} 7. Nbd2 {[%emt 0:00:02]} Qd7 {[%emt 0:00:05]} 8. a3 {[%emt 0:00:14]} Bc3 {[%emt 0:00:04]} 9. Rc1 {[%emt 0:00:05]} Bb2 {[%emt 0:00:01]} 10. Rc2 {[%emt 0:00:10]} Bxa3 {[%emt 0:00:02]} 11. Nb1 {[%emt 0:00:14]} Bb4+ {[%emt 0:00:02]} 12. Bd2 {[%emt 0:00:01]} Be7 {[%emt 0:00:03]} 13. Bf4 {[%emt 0:00:14]} Bf5 {[%emt 0:00:02]} 14. Rd2 {[%emt 0:00:06]} Bb4 {[%emt 0:00:01]} 15. g3 {[%emt 0:00:16]} Bxd2+ {[%emt 0:00:03]} 16. Nbxd2 {[%emt 0:00:03]} Nge7 {[%emt 0:00:02]} 17. h4 {[%emt 0:00:09]} O-O-O {[%emt 0:00:06]} 18. Bh3 {[%emt 0:00:04]} Bxh3 {[%emt 0:00:02]} 19. Ne4 {[%emt 0:00:04]} Bg2 {[%emt 0:00:09]} 20. Nc5 {[%emt 0:00:09]} Qe8 {[%emt 0:00:02]} 21. Rg1 {[%emt 0:00:28]} Bxf3 {[%emt 0:00:02]} 22. exf3 {[%emt 0:00:02]} b6 {[%emt 0:00:06]} 23. Nd3 {[%emt 0:00:17]} Ng6 {[%emt 0:00:05]} 24. Bd2 {[%emt 0:00:17]} Ngxe5 {[%emt 0:00:10]} 25. Nxe5 {[%emt 0:00:11]} Qxe5+ {[%emt 0:00:01]} 26. Kf1 {[%emt 0:00:01]} Rhe8 {[%emt 0:00:01]} 27. Kg2 {[%emt 0:00:02]} d3 {[%emt 0:00:04]} 28. Be3 {[%emt 0:00:05]} h6 {[%emt 0:00:11]} 29. b4 {[%emt 0:00:05]} Nxb4 {[%emt 0:00:06]} 30. Qa4 {[%emt 0:00:00]} Qa5 {[%emt 0:00:06]} 31. Ra1 {[%emt 0:00:17]} Qxa4 {[%emt 0:00:02]} 32. Rxa4 {[%emt 0:00:01]} Kb7 {[%emt 0:00:01]} 33. Rxb4 {[%emt 0:00:03]} d2 {[%emt 0:00:04]} 34. Bxd2 {[%emt 0:00:03]} Rxd2 {[%emt 0:00:01]} 35. c5 {[%emt 0:00:03]} Kc6 {[%emt 0:00:04]} 36. cxb6 {[%emt 0:00:02]} axb6 {[%emt 0:00:01]} 37. Rc4+ {[%emt 0:00:02]} Kb7 {[%emt 0:00:01]} 38. f4 {[%emt 0:00:03]} Ree2 {[%emt 0:00:02]} 39. Kf3 {[%emt 0:00:01]} Rxf2+ {[%emt 0:00:01]} 40. Kg4 {[%emt 0:00:01]} Rd3 {[%emt 0:00:05]} 41. Re4 {[%emt 0:00:03]} Rff3 {[%emt 0:00:02]} 0-1

[Event "GER-chW Blitz 2019"]
[Site "Magdeburg"]
[Date "2019.05.25"]
[Round "10.5"]
[White "Daemering, Katrin"]
[Black "Schulze, Lara"]
[Result "0-1"]
[ECO "A05"]
[WhiteElo "2003"]
[BlackElo "2160"]
[Annotator "NA"]
[PlyCount "154"]
[EventDate "2019.05.25"]
[EventType "tourn"]
[EventCountry "GER"]
[SourceTitle "playchess.com"]
[Source "ChessBase"]
[SourceQuality "1"]
[TimeControl "180+2"]

1. Nf3 {[%emt 0:00:00]} Nf6 {[%emt 0:00:01]} 2. g3 {[%emt 0:00:00]} b5 {[%emt 0:00:00]} 3. Bg2 Bb7 4. O-O {[%emt 0:00:02]} e6 {[%emt 0:00:01]} 5. d3 {[%emt 0:00:01]} Be7 {[%emt 0:00:03]} 6. e4 {[%emt 0:00:01]} d6 {[%emt 0:00:00]} 7. Nc3 {[%emt 0:00:01]} a6 {[%emt 0:00:04]} 8. h3 {[%emt 0:00:03]} O-O {[%emt 0:00:02]} 9. Be3 {[%emt 0:00:01]} c5 {[%emt 0:00:01]} 10. Ne1 {[%emt 0:00:05]} d5 {[%emt 0:00:08]} 11. exd5 {[%emt 0:00:05]} Nxd5 {[%emt 0:00:17]} 12. Nxd5 {[%emt 0:00:10]} Bxd5 {[%emt 0:00:01]} 13. Nf3 {[%emt 0:00:04]} Nd7 {[%emt 0:00:06]} 14. Qd2 {[%emt 0:00:20]} Bf6 {[%emt 0:00:11]} 15. c3 {[%emt 0:00:14]} Qc7 {[%emt 0:00:13]} 16. Bf4 {[%emt 0:00:16]} Qb7 {[%emt 0:00:01]} 17. Ne1 {[%emt 0:00:06]} Bxg2 {[%emt 0:00:15]} 18. Nxg2 {[%emt 0:00:01]} Rad8 {[%emt 0:00:01]} 19. Qe2 {[%emt 0:00:17]} Rfe8 {[%emt 0:00:30]} 20. Rfe1 {[%emt 0:00:02]} b4 {[%emt 0:00:09]} 21. Rac1 {[%emt 0:00:07]} Qd5 {[%emt 0:00:47]} 22. Ne3 {[%emt 0:00:13]} Qxa2 {[%emt 0:00:07]} 23. Ra1 {[%emt 0:00:02]} Qb3 {[%emt 0:00:02]} 24. Nc4 {[%emt 0:00:11]} bxc3 {[%emt 0:00:12]} 25. Ra3 {[%emt 0:00:03]} Qb4 {[%emt 0:00:18]} 26. bxc3 {[%emt 0:00:03]} Bxc3 {[%emt 0:00:05]} 27. Rc1 {[%emt 0:00:06]} Bd4 {[%emt 0:00:05]} 28. Rxa6 {[%emt 0:00:05]} e5 {[%emt 0:00:03]} 29. Bd2 {[%emt 0:00:02]} Qb7 {[%emt 0:00:01]} 30. Ra2 {[%emt 0:00:04]} Nf6 {[%emt 0:00:01]} 31. Rac2 {[%emt 0:00:07]} Nd5 {[%emt 0:00:01]} 32. Ne3 {[%emt 0:00:06]} Nb4 {[%emt 0:00:03]} 33. Bxb4 {[%emt 0:00:04]} Qxb4 {[%emt 0:00:01]} 34. Rc4 {[%emt 0:00:05]} Qb7 {[%emt 0:00:02]} 35. Nf5 {[%emt 0:00:10]} Qd7 {[%emt 0:00:02]} 36. Qg4 {[%emt 0:00:10]} g6 {[%emt 0:00:08]} 37. Nxd4 {[%emt 0:00:12]} Qxg4 {[%emt 0:00:06]} 38. hxg4 {[%emt 0:00:02]} cxd4 {[%emt 0:00:00]} 39. Re1 {[%emt 0:00:03]} Kg7 {[%emt 0:00:01]} 40. Rc5 {[%emt 0:00:01]} f6 {[%emt 0:00:02]} 41. Kg2 {[%emt 0:00:02]} Kh6 {[%emt 0:00:01]} 42. Kf3 {[%emt 0:00:01]} Kg5 {[%emt 0:00:01]} 43. Re4 {[%emt 0:00:02]} Rb8 {[%emt 0:00:01]} 44. Rxd4 Rb3 {[%emt 0:00:03]} 45. Rdd5 {[%emt 0:00:08]} Ra8 {[%emt 0:00:02]} 46. Ke4 {[%emt 0:00:06]} Kxg4 {[%emt 0:00:03]} 47. Rd6 {[%emt 0:00:03]} Ra4+ {[%emt 0:00:01]} 48. Rc4 {[%emt 0:00:05]} Rbb4 {[%emt 0:00:01]} 49. Rxf6 {[%emt 0:00:05]} Rxc4+ {[%emt 0:00:02]} 50. dxc4 {[%emt 0:00:00]} Rxc4+ {[%emt 0:00:00]} 51. Kxe5 {[%emt 0:00:01]} g5 {[%emt 0:00:04]} 52. Rh6 {[%emt 0:00:04]} Rc2 {[%emt 0:00:03]} 53. Rxh7 Rxf2 {[%emt 0:00:00]} 54. Rg7 {[%emt 0:00:07]} Re2+ {[%emt 0:00:02]} 55. Kd4 {[%emt 0:00:01]} Rg2 {[%emt 0:00:02]} 56. Ke4 {[%emt 0:00:03]} Rxg3 {[%emt 0:00:01]} 57. Rg6 {[%emt 0:00:01]} Rg1 {[%emt 0:00:02]} 58. Ke3 {[%emt 0:00:01]} Rf1 {[%emt 0:00:02]} 59. Ke2 {[%emt 0:00:01]} Rf8 {[%emt 0:00:01]} 60. Ke3 {[%emt 0:00:02]} Kh5 {[%emt 0:00:05]} 61. Rg7 {[%emt 0:00:01]} Kh4 {[%emt 0:00:03]} 62. Rh7+ {[%emt 0:00:01]} Kg3 {[%emt 0:00:00]} 63. Rg7 g4 64. Rh7 {[%emt 0:00:02]} Kg2 {[%emt 0:00:03]} 65. Rg7 {[%emt 0:00:02]} g3 {[%emt 0:00:00]} 66. Ke2 {[%emt 0:00:01]} Kh2 {[%emt 0:00:06]} 67. Ke1 {[%emt 0:00:04]} g2 {[%emt 0:00:01]} 68. Rh7+ {[%emt 0:00:01]} Kg1 {[%emt 0:00:01]} 69. Rg7 {[%emt 0:00:01]} Re8+ {[%emt 0:00:01]} 70. Kd2 {[%emt 0:00:01]} Re5 {[%emt 0:00:03]} 71. Kd1 {[%emt 0:00:02]} Kf2 {[%emt 0:00:08]} 72. Rf7+ {[%emt 0:00:01]} Kg3 {[%emt 0:00:02]} 73. Rg7+ {[%emt 0:00:01]} Kf3 {[%emt 0:00:01]} 74. Rf7+ {[%emt 0:00:01]} Kg4 {[%emt 0:00:01]} 75. Rg7+ {[%emt 0:00:01]} Rg5 {[%emt 0:00:00]} 76. Rxg5+ Kxg5 77. Ke2 {[%emt 0:00:03]} g1=Q {[%emt 0:00:03]} 0-1

[Event "GER-chW Blitz 2019"]
[Site "Magdeburg"]
[Date "2019.05.25"]
[Round "10.6"]
[White "Sieber, Fiona"]
[Black "Kushka, Alena"]
[Result "0-1"]
[ECO "B32"]
[WhiteElo "2250"]
[BlackElo "2148"]
[Annotator "NA"]
[PlyCount "122"]
[EventDate "2019.05.25"]
[EventType "tourn"]
[EventCountry "GER"]
[SourceTitle "playchess.com"]
[Source "ChessBase"]
[SourceQuality "1"]
[TimeControl "180+2"]

1. e4 {[%emt 0:00:00]} c5 {[%emt 0:00:00]} 2. Nf3 {[%emt 0:00:00]} Nc6 {[%emt 0:00:00]} 3. d4 {[%emt 0:00:01]} cxd4 {[%emt 0:00:00]} 4. Nxd4 {[%emt 0:00:01]} Qb6 {[%emt 0:00:01]} 5. Nb3 {[%emt 0:00:06]} Nf6 {[%emt 0:00:01]} 6. Be3 {[%emt 0:00:02]} Qb4+ {[%emt 0:00:00]} 7. N1d2 {[%emt 0:00:08]} Nxe4 {[%emt 0:00:03]} 8. c3 {[%emt 0:00:03]} Qa4 {[%emt 0:00:03]} 9. Bd3 {[%emt 0:00:11]} Nxd2 {[%emt 0:00:09]} 10. Qxd2 {[%emt 0:00:02]} d5 {[%emt 0:00:26]} 11. O-O {[%emt 0:00:29]} e6 {[%emt 0:00:12]} 12. Qe2 {[%emt 0:00:30]} Qh4 {[%emt 0:00:12]} 13. f4 {[%emt 0:00:20]} Bd6 {[%emt 0:00:05]} 14. g3 {[%emt 0:00:25]} Qe7 {[%emt 0:00:12]} 15. f5 {[%emt 0:00:19]} exf5 {[%emt 0:00:15]} 16. Rae1 {[%emt 0:00:06]} O-O {[%emt 0:00:07]} 17. Qf3 {[%emt 0:00:04]} Ne5 {[%emt 0:00:16]} 18. Qd1 {[%emt 0:00:04]} Nxd3 {[%emt 0:00:10]} 19. Qxd3 {[%emt 0:00:01]} Qe4 {[%emt 0:00:12]} 20. Qd2 {[%emt 0:00:04]} Qc4 {[%emt 0:00:28]} 21. Nd4 {[%emt 0:00:09]} Bd7 {[%emt 0:00:03]} 22. b3 {[%emt 0:00:05]} Qc8 {[%emt 0:00:09]} 23. Bf4 {[%emt 0:00:13]} Bxf4 {[%emt 0:00:07]} 24. Rxf4 {[%emt 0:00:01]} Re8 {[%emt 0:00:02]} 25. Ref1 {[%emt 0:00:01]} Re4 {[%emt 0:00:04]} 26. R4f3 {[%emt 0:00:07]} Qc5 {[%emt 0:00:04]} 27. Kg2 {[%emt 0:00:02]} Rae8 {[%emt 0:00:02]} 28. R1f2 {[%emt 0:00:02]} g6 {[%emt 0:00:03]} 29. Qd3 {[%emt 0:00:02]} Qe7 {[%emt 0:00:03]} 30. Nc2 {[%emt 0:00:09]} Bc6 {[%emt 0:00:03]} 31. b4 {[%emt 0:00:03]} a6 {[%emt 0:00:05]} 32. Nd4 {[%emt 0:00:03]} Re3 {[%emt 0:00:02]} 33. Qd2 {[%emt 0:00:05]} Rxf3 {[%emt 0:00:02]} 34. Rxf3 {[%emt 0:00:02]} Qe4 {[%emt 0:00:02]} 35. Kg1 {[%emt 0:00:07]} Qe1+ {[%emt 0:00:02]} 36. Qxe1 {[%emt 0:00:02]} Rxe1+ {[%emt 0:00:01]} 37. Kf2 {[%emt 0:00:00]} Ra1 {[%emt 0:00:01]} 38. Re3 {[%emt 0:00:02]} Rxa2+ {[%emt 0:00:01]} 39. Kf3 {[%emt 0:00:01]} Kf8 {[%emt 0:00:02]} 40. Re5 {[%emt 0:00:01]} f6 {[%emt 0:00:02]} 41. Re6 {[%emt 0:00:01]} Kf7 {[%emt 0:00:01]} 42. Rd6 {[%emt 0:00:02]} Ra3 {[%emt 0:00:01]} 43. Rd8 {[%emt 0:00:02]} Rxc3+ 44. Ke2 {[%emt 0:00:00]} Rc4 {[%emt 0:00:03]} 45. Nxc6 bxc6 {[%emt 0:00:01]} 46. Ra8 {[%emt 0:00:03]} Rxb4 {[%emt 0:00:02]} 47. Rxa6 {[%emt 0:00:01]} Rc4 {[%emt 0:00:00]} 48. Ra7+ {[%emt 0:00:01]} Ke6 {[%emt 0:00:02]} 49. Rxh7 {[%emt 0:00:01]} c5 {[%emt 0:00:00]} 50. Rc7 {[%emt 0:00:02]} Rc2+ {[%emt 0:00:01]} 51. Kd3 {[%emt 0:00:01]} Rxh2 {[%emt 0:00:02]} 52. Rxc5 {[%emt 0:00:01]} Rg2 {[%emt 0:00:01]} 53. Rc6+ {[%emt 0:00:01]} Ke5 {[%emt 0:00:01]} 54. Rc8 {[%emt 0:00:02]} Rxg3+ 55. Ke2 Kf4 {[%emt 0:00:04]} 56. Rd8 {[%emt 0:00:02]} Ke4 {[%emt 0:00:01]} 57. Re8+ {[%emt 0:00:01]} Kd4 {[%emt 0:00:01]} 58. Ra8 {[%emt 0:00:01]} f4 {[%emt 0:00:02]} 59. Ra4+ {[%emt 0:00:01]} Ke5 {[%emt 0:00:01]} 60. Kf2 {[%emt 0:00:01]} Rb3 {[%emt 0:00:01]} 61. Ra8 {[%emt 0:00:03]} g5 {[%emt 0:00:01]} 0-1